fUST/lending_fUST_20250901
["ID","MTS","AMOUNT","RATE_DAILY","PERIOD"]
[382585333,1756674649756,-480.0,0.00017329,2]
[382585335,1756674649767,-524.07,0.00017329,2]
[382585337,1756674649777,-480.0,0.00017329,2]
[382585339,1756674649787,-860.12,0.00017329,2]
[382585341,1756674649796,-151.0,0.00017329,2]
[382585343,1756674649806,-151.0,0.00017329,2]
[382585345,1756674649815,-151.0,0.00017329,2]
[382585347,1756674649824,-1015.41,0.00017329,2]
[382585349,1756674649834,-527.6327369,0.00017371,2]
[382585351,1756674649844,-480.0,0.00017371,2]
[382585353,1756674649854,-744.5,0.00017371,2]
[382585355,1756674649863,-874.18,0.00017371,2]
[382585357,1756674649873,-480.0,0.00017371,2]
[382585359,1756674649883,-480.0,0.00017372,2]
[382585361,1756674649892,-480.0,0.00017372,2]
[382585363,1756674649902,-480.0,0.00017372,2]
[382585365,1756674649911,-480.0,0.00017372,2]
[382585367,1756674649921,-480.0,0.00017372,2]
[382585369,1756674649931,-895.0,0.00017372,2]
[382585371,1756674649940,-480.0,0.00017372,2]
[382585373,1756674649950,-480.0,0.00017372,2]
[382585375,1756674649959,-480.0,0.00017372,2]
[382585377,1756674649969,-762.61,0.00017372,2]
[382585379,1756674649978,-152.778142,0.00017372,2]
[382585381,1756674649988,-480.0,0.00017372,2]
[382585383,1756674649997,-785.19,0.00017372,2]
[382585385,1756674650007,-480.0,0.00017372,2]
[382585387,1756674650016,-1046.65,0.00017372,2]
[382585389,1756674650025,-522.49,0.00017372,2]
[382585391,1756674650035,-480.0,0.00017372,2]
[382585393,1756674650044,-480.0,0.00017372,2]
[382585394,1756674650054,-480.0,0.00017372,2]
[382585396,1756674650063,-480.0,0.00017372,2]
[382585398,1756674650073,-480.0,0.00017372,2]
[382585400,1756674650083,-480.0,0.00017372,2]
[382585402,1756674650092,-480.0,0.00017372,2]
[382585405,1756674650103,-856.76,0.00017372,2]
[382585406,1756674650113,-480.0,0.00017372,2]
[382585408,1756674650123,-480.0,0.00017372,2]
[382585410,1756674650132,-1087.8,0.00017372,2]
[382585412,1756674650142,-480.0,0.00017372,2]
[382585415,1756674650151,-995.77,0.00017372,2]
[382585416,1756674650161,-480.0,0.00017372,2]
[382585418,1756674650170,-480.0,0.00017372,2]
[382585420,1756674650179,-480.0,0.00017372,2]
[382585422,1756674650189,-836.07,0.00017372,2]
[382585424,1756674650198,-548.66,0.00017372,2]
[382585426,1756674650209,-698.27,0.00017372,2]
[382585428,1756674650218,-480.0,0.00017372,2]
[382585430,1756674650228,-480.0,0.00017372,2]
[382585432,1756674650238,-765.48,0.00017372,2]
[382585434,1756674650248,-1225.05,0.00017372,2]
[382585436,1756674650258,-674.39,0.00017372,2]
[382585438,1756674650268,-480.0,0.00017372,2]
[382585440,1756674650277,-480.0,0.00017372,2]
[382585442,1756674650287,-480.0,0.00017372,2]
[382585444,1756674650296,-151.123548,0.00017372,2]
[382585446,1756674650305,-533.61,0.00017372,2]
[382585448,1756674650315,-508.04,0.00017372,2]
[382585450,1756674650324,-480.0,0.00017372,2]
[382585451,1756674650334,-480.0,0.00017372,2]
[382585453,1756674650343,-876.55,0.00017372,2]
[382585455,1756674650354,-151.0,0.00017372,2]
[382585457,1756674650364,-480.0,0.00017372,2]
[382585459,1756674650373,-151.0,0.00017372,2]
[382585461,1756674650383,-151.0,0.00017372,2]
[382585463,1756674650394,-168.360324,0.00017372,2]
[382585465,1756674650404,-480.0,0.00017372,2]
[382585467,1756674650415,-555.91,0.00017372,2]
[382585469,1756674650424,-1110.35,0.00017372,2]
[382585471,1756674650434,-989.14,0.00017372,2]
[382585473,1756674650445,-623.15,0.00017372,2]
[382585475,1756674650457,-151.0,0.00017372,2]
[382585477,1756674650467,-480.0,0.00017372,2]
[382585479,1756674650476,-225.188496,0.00017372,2]
[382585481,1756674650485,-972.85,0.00017372,2]
[382585483,1756674650495,-562.21,0.00017372,2]
[382585485,1756674650504,-151.0,0.00017372,2]
[382585487,1756674650514,-1052.02,0.00017372,2]
[382585489,1756674650525,-480.0,0.00017372,2]
[382585491,1756674650534,-151.0,0.00017372,2]
[382585493,1756674650544,-289.739314,0.00017372,2]
[382585495,1756674650553,-151.0,0.00017372,2]
[382585497,1756674650563,-480.0,0.00017372,2]
[382585499,1756674650572,-480.0,0.00017372,2]
[382585501,1756674650582,-480.0,0.00017372,2]
[382585503,1756674650593,-480.0,0.00017372,2]
[382585505,1756674650603,-480.0,0.00017372,2]
[382585507,1756674650612,-480.0,0.00017372,2]
[382585509,1756674650622,-480.0,0.00017372,2]
[382585511,1756674650631,-151.0,0.00017372,2]
[382585513,1756674650641,-151.0,0.00017372,2]
[382585515,1756674650650,-480.0,0.00017372,2]
[382585517,1756674650659,-480.0,0.00017372,2]
[382585519,1756674650669,-480.0,0.00017372,2]
[382585521,1756674650678,-215.80757805,0.00017372,2]
[382585523,1756674650688,-510.79,0.00017372,2]
[382585524,1756674650698,-719.42,0.00017372,2]
[382585526,1756674650709,-480.0,0.00017372,2]
[382585529,1756674650719,-573.64,0.00017372,2]
[382585531,1756674650729,-480.0,0.00017372,2]
[382585533,1756674650739,-151.0,0.00017372,2]
[382585535,1756674650749,-151.0,0.00017372,2]
[382585537,1756674650759,-480.0,0.00017372,2]
[382585538,1756674650769,-649.3,0.00017372,2]
[382585540,1756674650778,-585.21,0.00017372,2]
[382585542,1756674650789,-480.0,0.00017372,2]
[382585544,1756674650798,-480.0,0.00017372,2]
[382585546,1756674650808,-480.0,0.00017372,2]
[382585547,1756674650818,-496.46,0.00017372,2]
[382585548,1756674650827,-1173.25,0.00017372,2]
[382585549,1756674650837,-480.0,0.00017372,2]
[382585550,1756674650846,-480.0,0.00017372,2]
[382585551,1756674650856,-480.0,0.00017372,2]
[382585553,1756674650865,-482.35,0.00017372,2]
[382585556,1756674650876,-518.63,0.00017372,2]
[382585558,1756674650885,-480.0,0.00017372,2]
[382585559,1756674650895,-866.81,0.00017372,2]
[382585562,1756674650904,-895.76,0.00017372,2]
[382585564,1756674650914,-910.6,0.00017372,2]
[382585565,1756674650924,-587.72,0.00017372,2]
[382585568,1756674650937,-480.0,0.00017372,2]
[382585570,1756674650947,-882.7,0.00017372,2]
[382585572,1756674650958,-507.4,0.00017372,2]
[382585574,1756674650969,-990.58,0.00017372,2]
[382585576,1756674650979,-480.0,0.00017372,2]
[382585578,1756674650989,-892.91,0.00017372,2]
[382585579,1756674650998,-480.0,0.00017372,2]
[382585582,1756674651008,-1124.35,0.00017372,2]
[382585584,1756674651018,-480.0,0.00017372,2]
[382585586,1756674651028,-480.0,0.00017372,2]
[382585588,1756674651037,-556.81,0.00017372,2]
[382585589,1756674651047,-480.0,0.00017372,2]
[382585592,1756674651056,-1094.52,0.00017372,2]
[382585594,1756674651066,-480.0,0.00017372,2]
[382585596,1756674651076,-849.35,0.00017372,2]
[382585598,1756674651086,-480.0,0.00017372,2]
[382585600,1756674651095,-930.7,0.00017372,2]
[382585601,1756674651104,-1508.46,0.00017372,2]
[382585603,1756674651114,-599.26,0.00017372,2]
[382585606,1756674651124,-1303.59,0.00017372,2]
[382585608,1756674651134,-1151.72,0.00017372,2]
[382585610,1756674651143,-480.0,0.00017372,2]
[382585612,1756674651153,-151.0,0.00017372,2]
[382585614,1756674651162,-480.0,0.00017372,2]
[382585616,1756674651172,-229.27187394,0.00017372,2]
[382585618,1756674651182,-480.0,0.00017372,2]
[382585620,1756674651191,-480.0,0.00017372,2]
[382585622,1756674651201,-199.450143,0.00017372,2]
[382585624,1756674651210,-480.0,0.00017372,2]
[382585626,1756674651220,-480.0,0.00017372,2]
[382585628,1756674651231,-480.0,0.00017372,2]
[382585630,1756674651242,-970.25,0.00017372,2]
[382585632,1756674651252,-480.0,0.00017372,2]
[382585634,1756674651261,-631.64,0.00017372,2]
[382585636,1756674651271,-480.0,0.00017372,2]
[382585638,1756674651280,-1809.39,0.00017372,2]
[382585640,1756674651290,-480.0,0.00017372,2]
[382585642,1756674651300,-480.0,0.00017372,2]
[382585644,1756674651309,-480.0,0.00017372,2]
[382585646,1756674651319,-480.0,0.00017372,2]
[382585648,1756674651328,-497.68,0.00017372,2]
[382585650,1756674651338,-480.0,0.00017372,2]
[382585652,1756674651347,-480.0,0.00017372,2]
[382585654,1756674651356,-480.0,0.00017372,2]
[382585656,1756674651366,-480.0,0.00017372,2]
[382585658,1756674651376,-1577.96,0.00017372,2]
[382585660,1756674651388,-560.13,0.00017372,2]
[382585662,1756674651398,-480.0,0.00017372,2]
[382585664,1756674651407,-480.0,0.00017372,2]
[382585666,1756674651417,-963.21,0.00017372,2]
[382585668,1756674651426,-480.0,0.00017372,2]
[382585670,1756674651436,-480.0,0.00017372,2]
[382585672,1756674651447,-572.97,0.00017372,2]
[382585674,1756674651459,-480.0,0.00017372,2]
[382585676,1756674651468,-480.0,0.00017372,2]
[382585678,1756674651478,-480.0,0.00017372,2]
[382585680,1756674651488,-1082.95,0.00017372,2]
[382585682,1756674651498,-480.0,0.00017372,2]
[382585684,1756674651508,-553.35,0.00017372,2]
[382585686,1756674651518,-535.16,0.00017372,2]
[382585688,1756674651529,-480.0,0.00017372,2]
[382585690,1756674651538,-535.7,0.00017372,2]
[382585692,1756674651548,-418.0733762,0.00017372,2]
[382585694,1756674651558,-480.0,0.00017372,2]
[382585696,1756674651568,-1149.21,0.00017372,2]
[382585699,1756674651578,-480.0,0.00017372,2]
[382585700,1756674651588,-480.0,0.00017372,2]
[382585702,1756674651598,-660.94,0.00017372,2]
[382585704,1756674651607,-480.0,0.00017372,2]
[382585706,1756674651617,-594.61,0.00017372,2]
[382585708,1756674651626,-480.0,0.00017372,2]
[382585710,1756674651635,-306.69184088,0.00017372,2]
[382585712,1756674651645,-480.0,0.00017372,2]
[382585714,1756674651655,-368.90447785,0.00017372,2]
[382585717,1756674651665,-779.46,0.00017372,2]
[382585719,1756674651675,-151.0,0.00017372,2]
[382585721,1756674651684,-151.0,0.00017372,2]
[382585722,1756674651693,-151.0,0.00017372,2]
[382585723,1756674651703,-151.0,0.00017372,2]
[382585724,1756674651713,-569.86,0.00017372,2]
[382585725,1756674651722,-210.09090975,0.00017372,2]
[382585726,1756674651732,-944.13,0.00017372,2]
[382585727,1756674651742,-151.0,0.00017372,2]
[382585728,1756674651752,-151.0,0.00017372,2]
[382585729,1756674651914,-151.0,0.00017372,2]
[382585730,1756674651923,-151.0,0.00017372,2]
[382585731,1756674651933,-270.445229,0.00017372,2]
[382585732,1756674651942,-151.0,0.00017372,2]
[382585733,1756674651951,-480.0,0.00017372,2]
[382585734,1756674651960,-480.0,0.00017372,2]
[382585735,1756674651969,-151.0,0.00017372,2]
[382585736,1756674651978,-480.0,0.00017372,2]
[382585737,1756674651986,-151.0,0.00017372,2]
[382585738,1756674651995,-1125.84,0.00017372,2]
[382585739,1756674652004,-151.0,0.00017372,2]
[382585740,1756674652013,-151.0,0.00017372,2]
[382585741,1756674652022,-151.0,0.00017372,2]
[382585742,1756674652031,-340.29691415,0.00017373,2]
[382585743,1756674652041,-162.28722497,0.00017373,2]
[382585744,1756674652050,-500.0,0.00017373,2]
[382585746,1756674652060,-500.0,0.00017373,2]
[382585747,1756674652069,-500.0,0.00017373,2]
[382585748,1756674652078,-500.0,0.00017373,2]
[382585750,1756674652087,-500.0,0.00017373,2]
[382585752,1756674652096,-500.0,0.00017373,2]
[382585754,1756674652106,-500.0,0.00017373,2]
[382585756,1756674652115,-500.0,0.00017373,2]
[382585758,1756674652125,-566.07791943,0.00017373,2]
[382585760,1756674652134,-500.0,0.00017373,2]
[382585762,1756674652143,-500.0,0.00017373,2]
[382585764,1756674652152,-500.0,0.00017373,2]
[382585766,1756674652162,-500.0,0.00017373,2]
[382585768,1756674652171,-500.0,0.00017373,2]
[382585770,1756674652180,-500.0,0.00017373,2]
[382585772,1756674652189,-500.0,0.00017373,2]
[382585774,1756674652199,-500.0,0.00017373,2]
[382585776,1756674652209,-500.0,0.00017373,2]
[382585778,1756674652219,-463.65554289,0.00017373,2]
[382585780,1756674652228,-500.0,0.00017373,2]
[382585782,1756674652237,-500.0,0.00017373,2]
[382585784,1756674652247,-500.0,0.00017373,2]
[382585786,1756674652257,-500.0,0.00017373,2]
[382585788,1756674652266,-500.0,0.00017373,2]
[382585790,1756674652276,-500.0,0.00017373,2]
[382585792,1756674652285,-500.0,0.00017373,2]
[382585794,1756674652294,-500.0,0.00017373,2]
[382585796,1756674652303,-500.0,0.00017373,2]
[382585798,1756674652312,-501.4632323,0.00017373,2]
[382585800,1756674652321,-674.7,0.00017373,2]
[382585802,1756674652331,-480.0,0.00017373,2]
[382585804,1756674652341,-480.0,0.00017373,2]
[382585806,1756674652350,-480.0,0.00017373,2]
[382585808,1756674652359,-874.1,0.00017373,2]
[382585810,1756674652368,-480.0,0.00017373,2]
[382585812,1756674652378,-480.0,0.00017373,2]
[382585814,1756674652387,-480.0,0.00017373,2]
[382585816,1756674652397,-480.0,0.00017373,2]
[382585818,1756674652406,-480.0,0.00017373,2]
[382585820,1756674652415,-480.0,0.00017373,2]
[382585822,1756674652424,-480.0,0.00017373,2]
[382585824,1756674652434,-502.64,0.00017373,2]
[382585826,1756674652443,-480.0,0.00017373,2]
[382585828,1756674652455,-580.79,0.00017373,2]
[382585830,1756674652464,-484.01,0.00017373,2]
[382585832,1756674652474,-480.0,0.00017373,2]
[382585834,1756674652483,-151.0,0.00017374,2]
[382585836,1756674652492,-500.0,0.00017374,2]
[382585838,1756674652501,-480.0,0.00017374,2]
[382585840,1756674652510,-480.0,0.00017374,2]
[382585841,1756674652520,-480.0,0.00017374,2]
[382585843,1756674652530,-841.54,0.00017374,2]
[382585845,1756674652540,-480.0,0.00017374,2]
[382585847,1756674652550,-514.58,0.00017374,2]
[382585849,1756674652560,-480.0,0.00017374,2]
[382585851,1756674652570,-658.13,0.00017374,2]
[382585853,1756674652579,-480.0,0.00017374,2]
[382585855,1756674652588,-493.34,0.00017374,2]
[382585857,1756674652597,-581.62,0.00017374,2]
[382585859,1756674652607,-480.0,0.00017374,2]
[382585861,1756674652616,-1146.22,0.00017374,2]
[382585863,1756674652626,-675.12,0.00017374,2]
[382585865,1756674652635,-480.0,0.00017374,2]
[382585867,1756674652645,-480.0,0.00017374,2]
[382585869,1756674652654,-537.04,0.00017374,2]
[382585871,1756674652663,-151.0,0.00017374,2]
[382585873,1756674652674,-154.702727,0.00017374,2]
[382585875,1756674652683,-151.0,0.00017374,2]
[382585877,1756674652693,-151.0,0.00017374,2]
[382585879,1756674652703,-1256.0,0.00017376,2]
[382585881,1756674652712,-151.0,0.00017378,2]
[382585883,1756674652721,-293.103662,0.00017378,2]
[382585885,1756674652731,-6558.07286859,0.00017378,2]
[382585887,1756674652740,-151.0,0.000174,2]
[382585889,1756674652748,-501.40685948,0.00017421,2]
[382585891,1756674652757,-1000.0,0.00017421,2]
[382585893,1756674652767,-1000.0,0.00017421,2]
[382585895,1756674652776,-1000.0,0.00017421,2]
[382585897,1756674652785,-1000.0,0.00017421,2]
[382585899,1756674652794,-1000.0,0.00017421,2]
[382585901,1756674652803,-1000.0,0.00017421,2]
[382585903,1756674652813,-1000.0,0.00017421,2]
[382585905,1756674652822,-1000.0,0.00017421,2]
[382585907,1756674652831,-1004.30330387,0.00017421,2]
[382585909,1756674652840,-1000.0,0.00017421,2]
[382585911,1756674652850,-1000.0,0.00017421,2]
[382585913,1756674652859,-1000.0,0.00017421,2]
[382585915,1756674652868,-1000.0,0.00017421,2]
[382585917,1756674652877,-848.0,0.00017491,2]
[382585919,1756674652888,-151.0,0.000175,2]
[382585921,1756674652897,-848.0,0.00017515,2]
[382585923,1756674652906,-160.0,0.00017557,2]
[382585925,1756674652916,-1032.83,0.00017602,2]
[382585927,1756674652925,-621.14,0.00017602,2]
[382585929,1756674652934,-480.0,0.00017602,2]
[382585931,1756674652944,-480.0,0.00017602,2]
[382585933,1756674652953,-1833.22,0.00017602,2]
[382585935,1756674652963,-480.0,0.00017602,2]
[382585937,1756674652972,-480.0,0.00017602,2]
[382585939,1756674652981,-979.7,0.00017602,2]
[382585941,1756674652991,-480.0,0.00017602,2]
[382585943,1756674653000,-1585.93,0.00017602,2]
[382585945,1756674653009,-612.34,0.00017602,2]
[382585947,1756674653019,-505.39,0.00017602,2]
[382585949,1756674653029,-1499.59,0.00017602,2]
[382585951,1756674653038,-649.57,0.00017602,2]
[382585953,1756674653047,-480.0,0.00017602,2]
[382585955,1756674653056,-487.49,0.00017602,2]
[382585957,1756674653066,-579.1,0.00017602,2]
[382585959,1756674653076,-480.0,0.00017602,2]
[382585961,1756674653085,-979.23,0.00017602,2]
[382585963,1756674653094,-500.0,0.00017603,2]
[382585965,1756674653104,-166.28300412,0.00017603,2]
[382585967,1756674653113,-165.37089005,0.00017603,2]
[382585969,1756674653122,-480.0,0.00017603,2]
[382585970,1756674653131,-922.29,0.00017603,2]
[382585972,1756674653141,-480.0,0.00017603,2]
[382585974,1756674653150,-609.2482364,0.00017603,2]
[382585976,1756674653160,-480.0,0.00017603,2]
[382585978,1756674653169,-480.0,0.00017603,2]
[382585980,1756674653179,-487.12,0.00017603,2]
[382585982,1756674653188,-560.06,0.00017603,2]
[382585984,1756674653197,-480.0,0.00017603,2]
[382585987,1756674653207,-480.0,0.00017603,2]
[382585988,1756674653216,-1330.57,0.00017603,2]
[382585990,1756674653226,-480.0,0.00017603,2]
[382585992,1756674653235,-480.0,0.00017603,2]
[382585994,1756674653245,-480.0,0.00017603,2]
[382585996,1756674653255,-623.42,0.00017603,2]
[382585999,1756674653266,-480.0,0.00017603,2]
[382586000,1756674653275,-480.0,0.00017603,2]
[382586003,1756674653285,-553.56,0.00017603,2]
[382586004,1756674653294,-614.54,0.00017603,2]
[382586006,1756674653304,-733.87,0.00017603,2]
[382586008,1756674653313,-947.4,0.00017603,2]
[382586010,1756674653322,-971.89,0.00017603,2]
[382586013,1756674653332,-781.55,0.00017603,2]
[382586014,1756674653342,-155.599794,0.00017603,2]
[382586016,1756674653351,-151.0,0.00017603,2]
[382586018,1756674653360,-480.0,0.00017603,2]
[382586020,1756674653370,-480.0,0.00017603,2]
[382586022,1756674653379,-480.0,0.00017603,2]
[382586024,1756674653387,-480.0,0.00017603,2]
[382586026,1756674653396,-480.0,0.00017603,2]
[382586028,1756674653406,-920.75,0.00017603,2]
[382586030,1756674653416,-480.0,0.00017603,2]
[382586032,1756674653425,-584.67169518,0.00017603,2]
[382586034,1756674653435,-706.22,0.00017603,2]
[382586037,1756674653449,-3485.14,0.00017603,2]
[382586039,1756674653464,-559.23,0.00017603,2]
[382586041,1756674653477,-1384.43,0.00017603,2]
[382586044,1756674653491,-694.71,0.00017603,2]
[382586046,1756674653503,-151.0,0.00017603,2]
[382586048,1756674653516,-151.0,0.00017603,2]
[382586051,1756674653529,-480.0,0.00017603,2]
[382586053,1756674653543,-151.0,0.00017603,2]
[382586055,1756674653556,-176.48709,0.00017603,2]
[382586058,1756674653570,-773.25,0.00017603,2]
[382586060,1756674653583,-151.0,0.00017603,2]
[382586063,1756674653597,-151.0,0.00017603,2]
[382586065,1756674653610,-480.0,0.00017603,2]
[382586067,1756674653622,-151.0,0.00017603,2]
[382586069,1756674653634,-269.855448,0.00017603,2]
[382586072,1756674653649,-269.855448,0.00017603,2]
[382586074,1756674653661,-269.855448,0.00017603,2]
[382586076,1756674653673,-269.855448,0.00017603,2]
[382586078,1756674653683,-772.05,0.00017603,2]
[382586081,1756674653697,-480.0,0.00017603,2]
[382586083,1756674653708,-176.18563323,0.00017603,2]
[382586086,1756674653722,-151.0,0.00017603,2]
[382586088,1756674653735,-824.35,0.00017603,2]
[382586090,1756674653747,-905.18,0.00017603,2]
[382586093,1756674653760,-151.0,0.00017603,2]
[382586095,1756674653774,-673.01,0.00017603,2]
[382586098,1756674653788,-480.0,0.00017603,2]
[382586100,1756674653800,-929.05,0.00017603,2]
[382586102,1756674653811,-4200.05,0.00017603,2]
[382586104,1756674653821,-151.0,0.00017603,2]
[382586106,1756674653833,-5722.98,0.00017603,2]
[382586109,1756674653848,-577.04,0.00017603,2]
[382586112,1756674653862,-151.0,0.00017603,2]
[382586114,1756674653874,-595.51,0.00017603,2]
[382586116,1756674653885,-856.48,0.00017603,2]
[382586118,1756674653896,-480.0,0.00017603,2]
[382586121,1756674653910,-775.39,0.00017603,2]
[382586123,1756674653923,-1901.44,0.00017603,2]
[382586125,1756674653934,-480.0,0.00017603,2]
[382586127,1756674653945,-1143.32,0.00017603,2]
[382586129,1756674653956,-160.120775,0.00017603,2]
[382586132,1756674653967,-160.120775,0.00017603,2]
[382586134,1756674653978,-160.120775,0.00017603,2]
[382586136,1756674653990,-480.0,0.00017603,2]
[382586138,1756674654001,-160.120775,0.00017603,2]
[382586140,1756674654013,-480.0,0.00017603,2]
[382586143,1756674654025,-480.0,0.00017603,2]
[382586145,1756674654036,-678.0,0.00017603,2]
[382586147,1756674654048,-480.0,0.00017603,2]
[382586149,1756674654059,-480.0,0.00017603,2]
[382586151,1756674654071,-767.3,0.00017603,2]
[382586154,1756674654082,-480.0,0.00017603,2]
[382586156,1756674654094,-480.0,0.00017603,2]
[382586158,1756674654105,-480.0,0.00017603,2]
[382586160,1756674654117,-4028.03,0.00017603,2]
[382586163,1756674654128,-843.58,0.00017603,2]
[382586165,1756674654139,-480.0,0.00017603,2]
[382586167,1756674654151,-973.72,0.00017603,2]
[382586169,1756674654162,-480.0,0.00017603,2]
[382586171,1756674654174,-2742.43,0.00017603,2]
[382586174,1756674654185,-480.0,0.00017603,2]
[382586176,1756674654196,-812.45,0.00017603,2]
[382586178,1756674654207,-304.40385016,0.00017603,2]
[382586180,1756674654218,-480.0,0.00017603,2]
[382586182,1756674654229,-883.04,0.00017603,2]
[382586184,1756674654241,-480.0,0.00017603,2]
[382586187,1756674654252,-480.0,0.00017603,2]
[382586189,1756674654264,-617.9,0.00017603,2]
[382586191,1756674654275,-480.0,0.00017603,2]
[382586193,1756674654287,-480.0,0.00017603,2]
[382586195,1756674654298,-480.0,0.00017603,2]
[382586197,1756674654309,-524.07,0.00017603,2]
[382586199,1756674654320,-480.0,0.00017603,2]
[382586202,1756674654332,-860.12,0.00017603,2]
[382586204,1756674654343,-151.0,0.00017603,2]
[382586206,1756674654355,-151.0,0.00017603,2]
[382586208,1756674654366,-151.0,0.00017603,2]
[382586210,1756674654377,-1015.41,0.00017603,2]
[382586211,1756674654389,-1000.0,0.00017621,2]
[382586212,1756674654403,-213.79428328,0.00017621,2]
[382586213,1756674654415,-1000.0,0.00017621,2]
[382586214,1756674654426,-1000.0,0.00017621,2]
[382586215,1756674654438,-500.0,0.00017621,2]
[382586216,1756674654451,-1000.0,0.00017621,2]
[382586217,1756674654462,-1000.0,0.00017621,2]
[382586218,1756674654473,-480.0,0.00017645,2]
[382586220,1756674654487,-744.5,0.00017645,2]
[382586222,1756674654499,-874.18,0.00017645,2]
[382586225,1756674654512,-480.0,0.00017645,2]
[382586227,1756674654523,-480.0,0.00017646,2]
[382586229,1756674654534,-480.0,0.00017646,2]
[382586231,1756674654546,-480.0,0.00017646,2]
[382586234,1756674654559,-480.0,0.00017646,2]
[382586236,1756674654570,-480.0,0.00017646,2]
[382586238,1756674654582,-895.0,0.00017646,2]
[382586240,1756674654593,-480.0,0.00017646,2]
[382586243,1756674654604,-480.0,0.00017646,2]
[382586245,1756674654615,-480.0,0.00017646,2]
[382586247,1756674654626,-762.61,0.00017646,2]
[382586249,1756674654638,-480.0,0.00017646,2]
[382586251,1756674654649,-785.19,0.00017646,2]
[382586254,1756674654661,-480.0,0.00017646,2]
[382586256,1756674654672,-1046.65,0.00017646,2]
[382586258,1756674654683,-522.49,0.00017646,2]
[382586260,1756674654694,-480.0,0.00017646,2]
[382586263,1756674654706,-480.0,0.00017646,2]
[382586265,1756674654716,-480.0,0.00017646,2]
[382586267,1756674654727,-480.0,0.00017646,2]
[382586269,1756674654740,-480.0,0.00017646,2]
[382586272,1756674654751,-480.0,0.00017646,2]
[382586274,1756674654763,-480.0,0.00017646,2]
[382586276,1756674654774,-856.76,0.00017646,2]
[382586278,1756674654785,-480.0,0.00017646,2]
[382586280,1756674654796,-480.0,0.00017646,2]
[382586283,1756674654807,-1087.8,0.00017646,2]
[382586285,1756674654819,-480.0,0.00017646,2]
[382586287,1756674654830,-995.77,0.00017646,2]
[382586289,1756674654842,-480.0,0.00017646,2]
[382586292,1756674654853,-480.0,0.00017646,2]
[382586294,1756674654865,-480.0,0.00017646,2]
[382586296,1756674654877,-836.07,0.00017646,2]
[382586299,1756674654889,-548.66,0.00017646,2]
[382586301,1756674654901,-698.27,0.00017646,2]
[382586303,1756674654912,-480.0,0.00017646,2]
[382586305,1756674654924,-480.0,0.00017646,2]
[382586307,1756674654936,-765.48,0.00017646,2]
[382586310,1756674654947,-1225.05,0.00017646,2]
[382586312,1756674654959,-674.39,0.00017646,2]
[382586314,1756674654970,-480.0,0.00017646,2]
[382586316,1756674654982,-447.7088166,0.00017646,2]
[382586319,1756674654993,-480.0,0.00017646,2]
[382586321,1756674655004,-533.61,0.00017646,2]